Cogmind - Beta 17.1 @@@ ROGUE MODE // 2026.09.07 @ 17:16:48 Player: obl-vn Result: Destroyed by G-47 Trooper with Particle Gun Performance ------------- Evolutions (1) 500 Regions Visited (4) 800 Robots Destroyed (0) 0 Value Destroyed (0) 0 Prototype IDs (1) 20 Alien Tech Used (0) 0 Bonus (200) 200 TOTAL SCORE: 1520 Bonus ------- Pacifist 200 Cogmind --------- Core Integrity 0/400 Matter 255/300 Energy 98/100 System Corruption 0% Temperature Cool (9) Movement Core (50) Location -9/Mines Parts ------- > --- POWER (1) -------- (None) > --- PROPULSION (2) --- (None) > --- UTILITY (4) ------ (None) > --- WEAPON (2) ------- (None) > --- INVENTORY (5) ---- Experimental Sensor Array Improved Terrain Scanner Improved Terrain Scanner Improved Terrain Scanner Improved Terrain Scanner Peak State ------------ > --- POWER ------------ (None) > --- PROPULSION ------- (None) > --- UTILITY ---------- Experimental Sensor Array Reaction Control System Reaction Control System > --- WEAPON ----------- (None) > --- INVENTORY -------- Improved Terrain Scanner Improved Terrain Scanner Improved Terrain Scanner Improved Terrain Scanner Reaction Control System [Rating: 16] Favorites ----------- Power None Propulsion None Utility Reaction Control System Device Reaction Control System Weapon Light Assault Rifle Ballistic Gun Light Assault Rifle Build | -11 -10 -10 -9 -9 ------- Run | Yrd Mat Min Mat Min Slots Evolved 2 | . . . 2 . Power . | . . . . . Propulsion . | . . . . . Utility 2 | . . . 2 . Weapon . | . . . . . Parts Attached 7 | 2 . 1 4 . Power . | . . . . . Engine . | . . . . . Core . | . . . . . Reactor . | . . . . . Propulsion . | . . . . . Treads . | . . . . . Leg . | . . . . . Wheel . | . . . . . Hover . | . . . . . Flight . | . . . . . Utility 4 | . . 1 3 . Device 4 | . . 1 3 . Storage . | . . . . . Processor . | . . . . . Hackware . | . . . . . Protection . | . . . . . Artifact . | . . . . . Weapon 3 | 2 . . 1 . Energy Gun . | . . . . . Energy Cannon . | . . . . . Ballistic Gun 3 | 2 . . 1 . Ballistic Cannon . | . . . . . Launcher . | . . . . . Special Weapon . | . . . . . Impact Weapon . | . . . . . Slashing Weapon . | . . . . . Piercing Weapon . | . . . . . Special Melee Weapon . | . . . . . Unidentified Prototypes 1 | . . 1 . . Parts Lost 6 | . 1 . 2 3 Power . | . . . . . Propulsion . | . . . . . Utility 3 | . . . . 3 Weapon 3 | . 1 . 2 . Highest Loss Streak 2 | . 1 . 2 2 To Critical Strikes . | . . . . . Average Backups 3 | . 1 1 4 5 Power . | . . . . . Propulsion . | . . . . . Utility 3 | . . . 4 5 Weapon . | . 1 1 . . Tool/Special . | . . . . . Unused Backups 4 | . . . . 4 Power . | . . . . . Propulsion . | . . . . . Utility 4 | . . . . 4 Weapon . | . . . . . Tool/Special . | . . . . . Average Slot Usage (%) 18 | . 26 14 11 28 Device 9 | . . . 1 28 Ballistic Gun 9 | . 26 14 9 . Peak Build Rating 16 | 2 2 10 11 16 Average Rating 4 | 1 1 1 3 9 On Entrance 3 | . 2 1 2 11 Avg Prop Armor Cover (%) . | . . . . . Naked Turns 96 | . . . 80 16 Heaviest Build 3 | 2 2 1 3 3 Greatest Support 3 | 3 3 3 3 3 Greatest Overweight (x) . | . . . . . Average Overweight (x) . | . . . . . Largest Inventory Capacity 5 | 5 5 5 5 5 Average Capacity 5 | 5 5 5 5 5 Most Carried 5 | 1 1 2 5 5 Average Carried 3 | . 1 1 4 4 Final Capacity 5 | 5 5 5 5 5 Final Carried 5 | 1 1 2 5 5 Class Distribution -------------------- 100% | Mutant Dominant Class ---------------- Mutant | -10/Materials Mutant | -10/Mines Mutant | -9/Materials Mutant | -9/Mines Resources | -11 -10 -10 -9 -9 ----------- Run | Yrd Mat Min Mat Min Matter Collected 220 | 220 . . . . Remotely . | . . . . . Salvage Created . | . . . . . Parts . | . . . . . Haulers Intercepted . | . . . . . Recyclers Shooed . | . . . . . Parts Field Recycled . | . . . . . Retrieved Matter . | . . . . . Parts Self-Destructed . | . . . . . Prevented . | . . . . . Parts Restored . | . . . . . Kills | -11 -10 -10 -9 -9 ------- Run | Yrd Mat Min Mat Min Combat Hostiles Destroyed . | . . . . . Classes Destroyed . | . . . . . Best Kill Streak . | . . . . . Combat Bots Only . | . . . . . Max Kills in Single Turn . | . . . . . Gunslinging . | . . . . . Exploded . | . . . . . Melee . | . . . . . Uniques/NPCs Destroyed . | . . . . . Combat | -11 -10 -10 -9 -9 -------- Run | Yrd Mat Min Mat Min Hostile Shots Fired 97 | . . . 39 58 Missed 46 | . . . 14 32 Hits 51 | . . . 25 26 Projectile 51 | . . . 25 26 Critical Strikes 1 | . . . 1 . Damage Taken 811 | . 171 . 382 258 Core 455 | . 43 . 264 148 Absorbed by Shields . | . . . . . Core Remaining (%) 91 | 100 . 82 . . Volleys Fired . | . . . . . Largest . | . . . . . Hottest . | . . . . . Shots Fired . | . . . . . Gun . | . . . . . Cannon . | . . . . . Launcher . | . . . . . Special . | . . . . . Kinetic . | . . . . . Thermal . | . . . . . Explosive . | . . . . . Electromagnetic . | . . . . . Robot Hit Streak . | . . . . . Robot Miss Streak . | . . . . . Penetration Max . | . . . . . Secondary Targets . | . . . . . Shots Hit Robots . | . . . . . Core Hits . | . . . . . Critical Kills . | . . . . . Critical Parts Destroyed . | . . . . . Critical Strikes . | . . . . . Melee Attacks . | . . . . . Impact . | . . . . . Slashing . | . . . . . Piercing . | . . . . . Sneak Attacks . | . . . . . Combat Hostiles . | . . . . . Follow-up Attacks . | . . . . . Damage Inflicted . | . . . . . Guns . | . . . . . Cannons . | . . . . . Explosions . | . . . . . Melee . | . . . . . Ramming . | . . . . . Kinetic . | . . . . . Thermal . | . . . . . Explosive . | . . . . . Electromagnetic . | . . . . . Impact . | . . . . . Slashing . | . . . . . Piercing . | . . . . . Highest Corruption . | . . . . . Average Corruption . | . . . . . Corruption Purged . | . . . . . Corruption Blocked . | . . . . . Overload Shots . | . . . . . Overflow Damage . | . . . . . Projectiles . | . . . . . Explosions . | . . . . . Melee . | . . . . . Knockbacks . | . . . . . Impact . | . . . . . Kinetic . | . . . . . Secondary . | . . . . . Self-Inflicted Damage . | . . . . . Shots . | . . . . . Rammed . | . . . . . Targets Rammed . | . . . . . Kicked . | . . . . . Crushed . | . . . . . Highest Temperature . | . . . . . Average Temperature . | . . . . . Received Heat Transfer 162 | . . . 123 39 Siege Activations . | . . . . . Martial Activations . | . . . . . Shielding Activations . | . . . . . Robots Disrupted . | . . . . . Combat Hostiles . | . . . . . Robots Corrupted . | . . . . . Combat Hostiles . | . . . . . Parts Fried . | . . . . . Impact Corruptions . | . . . . . Robots Melted . | . . . . . Combat Hostiles . | . . . . . Parts Melted . | . . . . . Heat Transferred . | . . . . . Parts Sabotaged . | . . . . . Parts Stolen . | . . . . . Parts Stripped . | . . . . . Power Chain Reactions . | . . . . . Alert | -11 -10 -10 -9 -9 ------- Run | Yrd Mat Min Mat Min Maximum Alert Level . | . . . . . Low Security (%) 100 | 100 100 100 100 100 Level 1 . | . . . . . Level 2 . | . . . . . Level 3 . | . . . . . Level 4 . | . . . . . Level 5 . | . . . . . High Security . | . . . . . Max Security . | . . . . . Peak Influence 158 | . . . 65 158 Initial 13 | . . . . 13 Average 26 | . . . 13 72 Influence Increases 315 | . . . 120 195 Partial Spotted 15 | . . . 15 . Lose Combat Pursuer 300 | . . . 105 195 Influence Decreases 217 | . . . 85 132 Entered New Map 22 | . . . . 22 Time Decay 145 | . . . 65 80 Lost Part 50 | . . . 20 30 Squads Dispatched . | . . . . . Investigation . | . . . . . Extermination . | . . . . . Reinforcement . | . . . . . Assault . | . . . . . Garrison . | . . . . . Intercept . | . . . . . Searches Triggered . | . . . . . Construction Impeded . | . . . . . Haulers Reinforced . | . . . . . Active Scanning Responses . | . . . . . Cargo Convoy Interrupts . | . . . . . Stealth | -11 -10 -10 -9 -9 --------- Run | Yrd Mat Min Mat Min Distress Signals . | . . . . . Communications Jammed . | . . . . . Distress Signals . | . . . . . Times Spotted 31 | . 1 . 12 18 Peak Tracking Total 7 | . 1 . 7 6 Tactical Retreats 7 | . . . 3 4 Traps | -11 -10 -10 -9 -9 ------- Run | Yrd Mat Min Mat Min Traps Triggered 3 | . 1 . 2 . Indirectly . | . . . . . Trap Hack Attempts . | . . . . . Triggered . | . . . . . Disarmed . | . . . . . Reprogrammed . | . . . . . Reused . | . . . . . Traps Extracted . | . . . . . Installed . | . . . . . Triggered . | . . . . . Machines | -11 -10 -10 -9 -9 ---------- Run | Yrd Mat Min Mat Min Machines Disabled . | . . . . . Max in Single Turn . | . . . . . Machines Repaired . | . . . . . Machines Dismantled . | . . . . . Machines Sabotaged . | . . . . . Overloaded Fab Kills . | . . . . . Hacking | -11 -10 -10 -9 -9 --------- Run | Yrd Mat Min Mat Min Machines Accessed . | . . . . . Terminals . | . . . . . Fabricators . | . . . . . Repair Stations . | . . . . . Recycling Units . | . . . . . Scanalyzers . | . . . . . Garrison Access . | . . . . . Total Hacks . | . . . . . Successful . | . . . . . Failed . | . . . . . Catastrophic . | . . . . . Database Lockouts . | . . . . . Manual . | . . . . . Terminals . | . . . . . Fabricators . | . . . . . Repair Stations . | . . . . . Recycling Units . | . . . . . Scanalyzers . | . . . . . Garrison Access . | . . . . . Terminal Hacks . | . . . . . Fabricator Hacks . | . . . . . Repair Station Hacks . | . . . . . Recycling Unit Hacks . | . . . . . Scanalyzer . | . . . . . Garrison Access Hacks . | . . . . . Unauthorized Hacks . | . . . . . Terminals . | . . . . . Fabricators . | . . . . . Repair Stations . | . . . . . Recycling Units . | . . . . . Scanalyzers . | . . . . . Garrison Access . | . . . . . Data Cores Recovered . | . . . . . Used . | . . . . . Hacking Detections . | . . . . . Full Trace Events . | . . . . . Feedback Events . | . . . . . Feedback Blocked . | . . . . . Robot Schematics Acquired . | . . . . . Robots Built . | . . . . . Authchips . | . . . . . Time . | . . . . . Total Robot Build Rating . | . . . . . Part Schematics Acquired . | . . . . . Parts Built . | . . . . . Authchips . | . . . . . Time . | . . . . . Total Part Build Rating . | . . . . . Part Studies Acquired . | . . . . . Parts Repaired . | . . . . . Time . | . . . . . Parts Recycled . | . . . . . Recycled Matter . | . . . . . Retrieved Matter . | . . . . . Retrieved Components . | . . . . . Parts Scanalyzed . | . . . . . Part Schematics Acquired . | . . . . . Parts Damaged . | . . . . . Bothacking | -11 -10 -10 -9 -9 ------------ Run | Yrd Mat Min Mat Min Used RIF Installer . | . . . . . Robots Hacked . | . . . . . Non-combat . | . . . . . Combat . | . . . . . Robot Hacks Applied . | . . . . . Relay Couplers Released . | . . . . . Fabnet Peak Effective % . | . . . . . Robots Rewired . | . . . . . Allies Hacked . | . . . . . Hacks Repelled . | . . . . . Allies | -11 -10 -10 -9 -9 -------- Run | Yrd Mat Min Mat Min Total Allies . | . . . . . Largest Group . | . . . . . Highest-Rated Group . | . . . . . Highest-Rated Ally . | . . . . . Total Orders . | . . . . . Ally Attacks . | . . . . . Total Damage . | . . . . . Kills . | . . . . . Allies Corrupted . | . . . . . Allies Melted . | . . . . . Intel | -11 -10 -10 -9 -9 ------- Run | Yrd Mat Min Mat Min Active Infowar (turns) 13 | . . 1 . 12 Sensors 13 | . . 1 . 12 Robot Analysis Total . | . . . . . Derelict Logs Recovered 3 | . . 1 . 2 Drone Launches . | . . . . . Drone Recoveries . | . . . . . Exploration | -11 -10 -10 -9 -9 ------------- Run | Yrd Mat Min Mat Min Turns Passed 577 | 18 67 85 236 171 Spaces Moved 1027 | 29 133 139 438 288 Core 1027 | 29 133 139 438 288 Treads . | . . . . . Legs . | . . . . . Wheels . | . . . . . Hover . | . . . . . Flight . | . . . . . Fastest Speed 50 | 50 50 50 50 50 Average Speed 50 | 50 50 50 50 50 Slowest Speed 50 | 50 50 50 50 50 Overloaded Moves . | . . . . . Propulsion Burnouts . | . . . . . Robots Hopped . | . . . . . Potential Cave-ins . | . . . . . Cave-ins Triggered . | . . . . . Exploration Rate (%) 41 | 4 33 36 54 78 Regions Visited 4 Branch Regions 2 Pre-discovered Areas 2 | . . 1 . 1 Known Exits Taken . | . . . . . Unknown Exits Taken 4 | 1 1 1 1 . Scrap Searched 2 | . . . . 2 Spaces Dug . | . . . . . Terrain Destroyed . | . . . . . Melee . | . . . . . Projectile . | . . . . . AOE . | . . . . . Terrain Rammed . | . . . . . Walls Destroyed . | . . . . . Machines Disabled . | . . . . . Actions | -11 -10 -10 -9 -9 --------- Run | Yrd Mat Min Mat Min Total 1083 | 31 132 153 452 315 Wait 42 | . . 13 6 23 Move 1023 | 28 132 138 437 288 Hop . | . . . . . Pick Up 6 | 1 . . 4 1 Fast Attach 7 | 2 . 1 4 . Attach 1 | . . . . 1 Detach 1 | . . 1 . . Swap 1 | . . . . 1 Drop 2 | . . . 1 1 Fire . | . . . . . Melee . | . . . . . Ram . | . . . . . Kick . | . . . . . Crush . | . . . . . Escape Stasis . | . . . . . Rewire . | . . . . . Trap . | . . . . . Miscellaneous . | . . . . . Route ------- -11/Scrapyard -10/Materials -10/Mines -9/Materials (discovered 3 exits: [*Mat x2] / [*Min]) -9/Mines (discovered 2 exits: [*Mat x2]) History --------- Turn | Location | Event 3 | -11/Scrapyard | Discovered new exit (range 16) 19 | -11/Scrapyard | Entered Materials 83 | -10/Materials | Discovered new exit (range 6) 86 | -10/Materials | Entered Mines 96 | -10/Mines | Found a damaged Exp. Sensor Array with a note attached 97 | -10/Mines | Found Prototype Device 97 | -10/Mines | Identified Exp. Sensor Array 119 | -10/Mines | Assembled infested the area 140 | -10/Mines | Learned location of Mines (-9) 169 | -10/Mines | Discovered new exit (range 5) 171 | -10/Mines | Entered Materials 171 | -9/Materials | Evolved 2 slots: Utility x2 272 | -9/Materials | Discovered new exit (range 10) 303 | -9/Materials | Build established: Mutant 310 | -9/Materials | Discovered new exit (range 14) 327 | -9/Materials | Core integrity fell below 50% 378 | -9/Materials | Discovered new exit (range 15) 407 | -9/Materials | Entered Mines 408 | -9/Mines | Learned location of Storage (-8) 413 | -9/Mines | Met a Derelict bent on vengeance 480 | -9/Mines | Discovered new exit (range 10) 486 | -9/Mines | Learned location of 1 exit from Proximity Caves 536 | -9/Mines | Learned Materials stockpile data 545 | -9/Mines | Core integrity fell below 20% 578 | -9/Mines | Discovered new exit (range 8) 578 | -9/Mines | Destroyed by G-47 Trooper with Particle Gun Last Messages --------------- 00485_ Searching scrap... 00485_ Found Seismic Detector. 00485_ Found Imp. Aluminum Leg. 00485_ Found Weight Redist. System. 00485_ Found 33 Matter. 00486_ Acquired derelict log, extracted data. Data stored: Proximity Caves exits (x1). 00494_ K-01 Serf collects debris. 00526_ Reaction Control System destroyed. 00534_ Searching scrap... 00534_ Found Lgt. EM Pulse Cannon. 00534_ Found EM Pulse Gun. 00534_ Found 45 Matter. 00534_ K-01 Serf collects debris. 00536_ Acquired derelict log, extracted data. Data stored: Materials stockpile data. 00546_ K-01 Serf collects debris. 00560_ Reaction Control System destroyed. 00565_ K-01 Serf collects debris. 00578_ EXIT=FOUND Map ----- +----------------------------------------------------+ | | | | | | | | | ?????????????????????????????????????????????????? | | ?????????????????????????????????????????????????? | | ?????????????????????????????????????????????????? | | ?????????????????????????????????????????????????? | | ????######???????????????????????????????????????? | | ##### ##??????????????????????????????????????? | | #??????????????????????????????????????? | | #??????????????????????????????????????? | | ## ##?????????????????????????????????????? | | ?# ##????????????????????????????????????? | | ?# #????????????????????????????????????? | | ?# ##???????????????????????????????????? | | ?# ##??????????????????????????????????? | | ?## ##?????????????????????????????????? | | ??## #?????????????? ?????????????????? | | ???# ##????????????? "????????????????? | | #??# ##???????????? "????????????????? | | ##?## ##??????????? ????????????????? | | ##### #######????? ????????????????? | | ## ##???? ????????????????? | | s r ##### ""???????????? | | ###### ## ## @ g < ????????? | | #????# ########### g g ????????? | | ####?# #?????????############ ????????? | | # ### #???????????????####??# ########?????????? | | ## ######?????????# ##?# #????????????????? | | #???????## $#?# #????????????????? | | ## #### #????#### #?# #????????????????? | | ### #??# ###### #?# ########### #? | | ### #??# #??# #?? | | ## ##??######## ###?## ###### ### #??? | | ##??????????## ##??## #???# #?????????? | | " #????????????# #??## #???# #?????????? | | " ##??#####????## #??# ##???# ###?????### | | " #### ##????### #### ##???# #???## # | | ## #??????# #???### #??## # | | #??????## ### #?????# #### # | | ##??????# #?## #?????# # | | #####??# #??# #?????##### | | ##### #?## #?? ##?????????# | | # ##???# #### #?# #?? ##??????????## # | | ### #????# #??# #?# #????????????## ## | | ####?# #????# #??# #?## ##?????????????####? | | ?????# #????# #??# #??## #???????????????????? | | ?????# #????# #??# #????#####???????????????????? | | ?????# ????# #??# #????????????????????????????? | +----------------------------------------------------+ Best States ------------- Heat Dissipation 28 Energy Generation 5 Energy Capacity 100 Matter Stores 300 Matter Capacity 300 Sight Range 16 Robot Scan Range 20 Terrain Scan Density 10 Evasion (%) 58 Item Schematics ----------------- None Robot Schematics ------------------ None Fabricated ------------ Nothing Repaired ---------- Nothing Studied --------- None Alien Tech Used ----------------- None Achievements -------------- None Challenges ------------ None Game ------ Seed LightFlightAmplifier Manual? 0 Play Time 00:08:35 Cumulative 271.8 hours Start 2026.09.07 @ 17:07:13 End 2026.09.07 @ 17:16:48 Sessions 1 Manual Loads 0 Difficulty Rogue Special Mode None Game No. 179 Rogue 179 Adventurer 0 Explorer 0 Win Type - Total 6 Types 2/0/2/1/0/0/0/1/0/0 Lore% 63 Gallery% 75 Achievement% 59 Wizard Run 0 Options --------- Layout 2 ASCII 0 Keyboard 0 Movement Mouse Keybinds 0 Fullscreen 1 Font 32/Cog Map View 50x44 Zoom Use 0% Tactical HUD 1 Map Filters NONE Filters NONE Steam 1 RUN: fa0d22a8-8183-4146-b06a-a1debc54ef05